Cogmind - Beta 9.6 @@@ ROGUE MODE // 2020.04.15 @ 02:26:24 // Winter2019/RPGLIKE Player: IAMCRAIG Result: Destroyed by G-47 Trooper with Particle Gun Performance ------------- Evolutions (0) 0 Regions Visited (2) 400 Robots Destroyed (33) 165 Value Destroyed (818) 818 Prototype IDs (3) 60 Alien Tech Used (0) 0 Bonus (0) 0 TOTAL SCORE: 1443 Bonus ------- None Cogmind --------- Core Integrity 0/600 Matter 300/300 Energy 540/560 System Corruption 0% Temperature Cool (184) Movement Walking (120) Location -10/Mines Parts ------- > --- POWER (1) -------- Light Nuclear Core > --- PROPULSION (2) --- Aluminum Leg Aluminum Leg > --- UTILITY (4) ------ Heat Sink Heat Sink High-capacity Battery Improved Terrain Scanner > --- WEAPON (2) ------- Particle Cannon Particle Cannon > --- INVENTORY (2) ---- High-capacity Battery (400) Rocket Launcher Peak State ------------ > --- POWER ------------ Light Nuclear Core > --- PROPULSION ------- Aluminum Leg Aluminum Leg > --- UTILITY ---------- Heat Sink Heat Sink High-capacity Battery Improved Terrain Scanner > --- WEAPON ----------- Particle Cannon Particle Cannon > --- INVENTORY -------- High-capacity Battery [Rating: 14] Favorites ----------- Power Ion Engine Engine Ion Engine Power Core Light Nuclear Core Propulsion Aluminum Leg Leg Aluminum Leg Utility Improved Terrain Scanner Device Improved Terrain Scanner Storage High-capacity Battery Processor Seismic Analyzer Weapon Particle Cannon Energy Gun EM Pulse Gun Energy Cannon Particle Cannon Ballistic Gun Assault Rifle Build | -11 -10 -10 ------- Run | Scr Mat Min Slots Evolved 5 | 3 2 . Power . | . . . Propulsion 1 | 1 . . Utility 3 | 1 2 . Weapon 1 | 1 . . Parts Attached 19 | 7 11 1 Power 4 | 1 2 1 Engine 3 | 1 2 . Core 1 | . . 1 Reactor . | . . . Propulsion 4 | 2 2 . Treads . | . . . Leg 4 | 2 2 . Wheel . | . . . Hover . | . . . Flight . | . . . Utility 7 | 2 5 . Device 5 | 1 4 . Storage 1 | . 1 . Processor 1 | 1 . . Hackware . | . . . Protection . | . . . Artifact . | . . . Weapon 4 | 2 2 . Energy Gun 1 | 1 . . Energy Cannon 2 | . 2 . Ballistic Gun 1 | 1 . . Ballistic Cannon . | . . . Launcher . | . . . Special Weapon . | . . . Impact Weapon . | . . . Slashing Weapon . | . . . Piercing Weapon . | . . . Special Melee Weapon . | . . . Unidentified Prototypes . | . . . Parts Lost . | . . . Power . | . . . Propulsion . | . . . Utility . | . . . Weapon . | . . . Highest Loss Streak . | . . . Average Slot Usage (%) 97 | . 96 100 Engine 8 | . 11 1 Core 2 | . . 9 Leg 23 | . 24 22 Device 18 | . 13 33 Storage 11 | . 11 11 Processor 7 | . 10 . Energy Gun 5 | . 8 . Energy Cannon 11 | . 7 22 Ballistic Gun 5 | . 8 . Naked Turns . | . . . Heaviest Build 20 | 8 20 20 Greatest Support 20 | 20 20 20 Greatest Overweight (x) . | . . . Average Overweight (x) . | . . . Largest Inventory Capacity 2 | . 1 2 Average Capacity 1 | . . 1 Most Carried 2 | . 1 2 Average Carried 1 | . . 1 Final Capacity 2 | . 1 2 Final Carried 2 | . 1 2 Class Distribution -------------------- 98% | Mutant Dominant Class ---------------- Mutant | -10/Materials Mutant | -10/Mines Resources | -11 -10 -10 ----------- Run | Scr Mat Min Matter Collected 594 | 279 275 40 Remotely . | . . . Salvage Created 896 | 36 669 191 Parts 70 | 8 55 7 Haulers Intercepted 2 | . 2 . Recyclers Shooed 3 | . 2 1 Parts Field Recycled . | . . . Retrieved Matter . | . . . Parts Self-Destructed . | . . . Prevented . | . . . Kills | -11 -10 -10 ------- Run | Scr Mat Min Combat Hostiles Destroyed 19 | . 13 6 Guns 7 | . 7 . Cannons 10 | . 4 6 AOE 2 | . 2 . Classes Destroyed 10 | 1 8 1 Worker 2 | . 2 . Builder 2 | . 2 . Tunneler 2 | 2 . . Hauler 2 | . 2 . Recycler 3 | . 2 1 Operator 1 | . 1 . Watcher 2 | . 2 . Swarmer 7 | . 5 2 Grunt 10 | . 8 2 Demolisher 2 | . . 2 Best Kill Streak 5 | 2 5 3 Combat Bots Only 5 | . 5 3 Max Kills in Single Turn 2 | 1 2 1 Gunslinging 1 | . 1 . Exploded 1 | . 1 . Melee . | . . . Uniques/NPCs Destroyed . | . . . Combat | -11 -10 -10 -------- Run | Scr Mat Min Damage Taken 1524 | . 613 911 Core 1241 | . 493 748 Absorbed by Shields . | . . . Redirected to Core 941 | . 379 562 Core Remaining (%) 100 | 100 . . Volleys Fired 108 | 4 72 32 Largest 2 | 2 2 2 Hottest 136 | 60 136 136 Shots Fired 211 | 8 143 60 Gun 136 | 8 128 . Cannon 75 | . 15 60 Launcher . | . . . Special . | . . . Kinetic 68 | 4 64 . Thermal 75 | . 15 60 Explosive . | . . . Electromagnetic 68 | 4 64 . Robot Hit Streak 8 | 2 6 8 Robot Miss Streak 7 | 3 7 2 Penetration Max . | . . . Secondary Targets 4 | . 4 . Max Gunslinging Chain 1 | . 1 . Shots Hit Robots 100 | 3 54 43 Core Hits 47 | 2 34 11 Critical Hits . | . . . Critical Kills . | . . . Critical Parts Destroyed . | . . . Melee Attacks . | . . . Impact . | . . . Slashing . | . . . Piercing . | . . . Sneak Attacks . | . . . Combat Hostiles . | . . . Follow-up Attacks . | . . . Damage Inflicted 2472 | 94 1501 877 Guns 706 | 49 657 . Cannons 991 | . 114 877 Explosions 775 | 45 730 . Melee . | . . . Ramming . | . . . Kinetic 272 | 11 261 . Thermal 1766 | 45 844 877 Explosive . | . . . Electromagnetic 434 | 38 396 . Impact . | . . . Slashing . | . . . Piercing . | . . . Highest Corruption . | . . . Average Corruption . | . . . Corruption Purged . | . . . Overload Shots . | . . . Overflow Damage 240 | . 213 27 Projectiles 27 | . . 27 Explosions 213 | . 213 . Melee . | . . . Knockbacks . | . . . Impact . | . . . Kinetic . | . . . Secondary . | . . . Self-Inflicted Damage 141 | . 141 . Shots 4 | . 4 . Rammed . | . . . Targets Rammed . | . . . Kicked . | . . . Crushed . | . . . Highest Temperature 231 | . 231 210 Average Temperature 56 | . 44 71 Received Heat Transfer 231 | . 114 117 Siege Activations . | . . . Robots Corrupted . | . . . Combat Hostiles . | . . . Parts Fried . | . . . Impact Corruptions . | . . . Robots Melted . | . . . Combat Hostiles . | . . . Parts Melted 2 | . 1 1 Heat Transferred 2439 | 50 835 1554 Parts Sabotaged . | . . . Parts Stolen . | . . . Parts Stripped . | . . . Power Chain Reactions 6 | 1 5 . Missiles Intercepted . | . . . Alert | -11 -10 -10 ------- Run | Scr Mat Min Peak Influence 352 | 10 352 250 Average Influence 182 | 4 193 182 Maximum Alert Level 1 | . 1 1 Low Security (%) 46 | 100 46 39 Level 1 53 | . 53 60 Level 2 . | . . . Level 3 . | . . . Level 4 . | . . . Level 5 . | . . . High Security . | . . . Max Security . | . . . Squads Dispatched 3 | . 3 . Investigation 2 | . 2 . Extermination . | . . . Reinforcement 1 | . 1 . Assault . | . . . Garrison . | . . . Intercept . | . . . Construction Impeded . | . . . Haulers Reinforced . | . . . Stealth | -11 -10 -10 --------- Run | Scr Mat Min Distress Signals . | . . . Communications Jammed . | . . . Distress Signals . | . . . Times Spotted 38 | . 29 9 Peak Tracking Total 7 | . 7 5 Tactical Retreats 6 | . 6 . Traps | -11 -10 -10 ------- Run | Scr Mat Min Traps Triggered . | . . . Indirectly . | . . . Trap Hack Attempts . | . . . Triggered . | . . . Disarmed . | . . . Reprogrammed . | . . . Reused . | . . . Traps Extracted . | . . . Installed . | . . . Triggered . | . . . Machines | -11 -10 -10 ---------- Run | Scr Mat Min Machines Disabled 18 | . 14 4 Max in Single Turn 1 | . 1 1 Machines Sabotaged . | . . . Garrisons Compromised . | . . . Overloaded Fab Kills . | . . . Fab Network Shutdowns . | . . . Hacking | -11 -10 -10 --------- Run | Scr Mat Min Machines Accessed 10 | . 10 . Terminals 7 | . 7 . Fabricators . | . . . Repair Stations 1 | . 1 . Recycling Units 2 | . 2 . Scanalyzers . | . . . Garrison Access . | . . . Total Hacks 30 | . 30 . Successful 21 | . 21 . Failed 8 | . 8 . Catastrophic . | . . . Database Lockouts 1 | . 1 . Manual 19 | . 19 . Terminals 15 | . 15 . Fabricators . | . . . Repair Stations 3 | . 3 . Recycling Units 12 | . 12 . Scanalyzers . | . . . Garrison Access . | . . . Terminal Hacks 4 | . 4 . Robot Analysis 2 | . 2 . Prototype ID Bank 1 | . 1 . Locate Traps 1 | . 1 . Fabricator Hacks . | . . . Repair Station Hacks 2 | . 2 . Scan Component 1 | . 1 . Repair 1 | . 1 . Recycling Unit Hacks 5 | . 5 . Report Inventory 2 | . 2 . Retrieve Matter 1 | . 1 . Retrieve Components 2 | . 2 . Scanalyzer . | . . . Garrison Access Hacks . | . . . Unauthorized Hacks 10 | . 10 . Terminals 4 | . 4 . Track 1 | . 1 . Botnet 2 | . 2 . Sabotage 1 | . 1 . Fabricators . | . . . Repair Stations . | . . . Recycling Units 6 | . 6 . Monitor 1 | . 1 . Reject 2 | . 2 . Recyclers 1 | . 1 . Mask 2 | . 2 . Scanalyzers . | . . . Garrison Access . | . . . Data Cores Recovered . | . . . Used . | . . . Hacking Detections 9 | . 9 . Full Trace Events . | . . . Feedback Events . | . . . Feedback Blocked . | . . . Robot Schematics Acquired . | . . . Robots Built . | . . . Matter . | . . . Time . | . . . Total Robot Build Rating . | . . . Part Schematics Acquired . | . . . Parts Built . | . . . Matter . | . . . Time . | . . . Total Part Build Rating . | . . . Parts Repaired 1 | . 1 . Time 32 | . 32 . Parts Recycled . | . . . Recycled Matter . | . . . Retrieved Matter . | . . . Retrieved Components 20 | . 20 . Parts Scanalyzed . | . . . Part Schematics Acquired . | . . . Parts Damaged . | . . . Bothacking | -11 -10 -10 ------------ Run | Scr Mat Min Used RIF Installer . | . . . Robots Hacked . | . . . Non-combat . | . . . Combat . | . . . Robot Hacks Applied . | . . . Relay Couplers Released . | . . . Robots Rewired . | . . . Allies Hacked . | . . . Hacks Repelled . | . . . Allies | -11 -10 -10 -------- Run | Scr Mat Min Total Allies . | . . . Largest Group . | . . . Highest-Rated Group . | . . . Highest-Rated Ally . | . . . Total Orders . | . . . Ally Attacks . | . . . Total Damage . | . . . Kills . | . . . Allies Corrupted . | . . . Allies Melted . | . . . Intel | -11 -10 -10 ------- Run | Scr Mat Min Robot Analysis Total 2 | . 2 . Derelict Logs Recovered . | . . . Drone Launches . | . . . Drone Recoveries . | . . . Exploration | -11 -10 -10 ------------- Run | Scr Mat Min Turns Passed 2181 | 84 1508 589 Spaces Moved 1425 | 54 978 393 Core 6 | 6 . . Treads . | . . . Legs 1419 | 48 978 393 Wheels . | . . . Hover . | . . . Flight . | . . . Fastest Speed 50 | 50 120 120 Average Speed 119 | 112 120 120 Slowest Speed 120 | 120 120 120 Overloaded Moves . | . . . Propulsion Burnouts . | . . . Robots Hopped . | . . . Cave-ins Triggered . | . . . Exploration Rate (%) 55 | 4 96 67 Regions Visited 2 Branch Regions 1 Pre-discovered Areas . | . . . Known Exits Taken . | . . . Unknown Exits Taken 2 | 1 1 . Scrap Searched . | . . . Spaces Dug . | . . . Terrain Destroyed 28 | 4 13 11 Melee . | . . . Projectile . | . . . AOE 28 | 4 13 11 Actions | -11 -10 -10 --------- Run | Scr Mat Min Total 1688 | 66 1170 452 Wait 94 | 2 83 9 Move 1423 | 53 977 393 Hop . | . . . Pick Up 2 | . 1 1 Fast Attach 14 | 7 6 1 Attach . | . . . Detach 1 | . 1 . Swap 5 | . 5 . Drop 8 | . 7 1 Fire 108 | 4 72 32 Melee . | . . . Ram . | . . . Kick . | . . . Crush . | . . . Escape Stasis . | . . . Rewire . | . . . Trap . | . . . Miscellaneous 33 | . 18 15 Route ------- -11/Scrapyard -10/Materials (discovered 4 exits: [*Mat x3] / [*Min]) -10/Mines (discovered 1 exit: [*Mat]) History --------- Turn | Location | Event 1 | -11/Scrapyard | Upgraded with Propulsion slot (x1) 1 | -11/Scrapyard | Upgraded with Utility slot (x1) 1 | -11/Scrapyard | Upgraded with Weapon slot (x1) 10 | -11/Scrapyard | Discovered new exit (range 15) 85 | -11/Scrapyard | Entered Materials 107 | -10/Materials | Upgraded with Utility slot (x1) 261 | -10/Materials | Discovered new exit (range 6) 310 | -10/Materials | Build established: Mutant 320 | -10/Materials | Discovered new exit (range 16) 636 | -10/Materials | Core integrity fell below 50% 702 | -10/Materials | Reached level 2 761 | -10/Materials | Discovered new exit (range 16) 839 | -10/Materials | Discovered new exit (range 9) 1111 | -10/Materials | Upgraded with Utility slot (x1) 1402 | -10/Materials | Central database locked down 1559 | -10/Materials | Repaired Imp. Terrain Scanner 1593 | -10/Materials | Entered Mines 1595 | -10/Mines | Reached level 3 1697 | -10/Mines | Received a Rocket Launcher from a helpful Derelict 1773 | -10/Mines | Discovered new exit (range 9) 1936 | -10/Mines | Assembled infested the area 1941 | -10/Mines | Assisted by a Guerilla fighting off Assembled 2089 | -10/Mines | Core integrity fell below 20% 2182 | -10/Mines | Destroyed by G-47 Trooper with Particle Gun Last Messages --------------- 02104_ U-05 Engineer lays Concrete. 02104_ K-01 Serf collects debris. 02105_ U-05 Engineer lays Concrete. 02107_ U-05 Engineer builds a Wall. 02108_ U-05 Engineer lays Concrete. 02110_ The unstable cave ceiling collapses. 02110_ K-01 Serf collects debris. 02111_ U-05 Engineer lays Concrete. 02114_ K-01 Serf collects debris. 02115_ U-05 Engineer builds a Wall. 02116_ K-01 Serf collects debris. 02119_ U-05 Engineer builds a Wall. 02120_ K-01 Serf collects debris. 02123_ U-05 Engineer lays Concrete. 02125_ U-05 Engineer builds a Wall. 02125_ K-01 Serf collects debris. 02128_ U-05 Engineer builds a Wall. 02133_ U-05 Engineer lays Concrete. 02163_ Seismic Survey Station disabled. 02172_ G-34 Mercenary destroyed. Map ----- +----------------------------------------------------+ | | | | | | | | | | | | | | | | | | | | | | | | | | | | | | | ????????????#??#??#??##??##?##????#??#?#????? | | ????????##???##?#??##??#?##?#?####?#???#??#?? | | ????????#???#??#?###?###?#??#?#?###?#????#??? | | ???????#?####?##???##?###########??????#????? | | ????????##????#?##?#?#???#?#?###?##????#?#??? | | ?????????#?????####???#########?###??#?#??#?? | | ???????????####??##??#?###?######?##??###???? | | ?????#####?##????#?#?##??######?????###??##?? | | ?????######??#??##??###?#?#?########?###??### | | ?????#?????#????#?############## ##?????#?#? | | ?????##??????#?#?###@t ### ##?######? | | ???????##??#?###?###g#### ##?###### | | ??????#??#?##?###?## #### ########?? | | ??????##??#??##?#?## ##### ##?#?????? | | ????????#?#?? ? ?? #?#### ##???##?# # | | ??????##????##??#### ##???####### ####### #?# | | ??????#????????????# #?#######?## ### #? # | | ????????#???#?#?? ? ? ? ###### ### ## ?? | | ???????#?#?#????# ##?#?#!# # ### | | ????????##?#????# ? ?######|% | | ????????#?##??##? " " ?"" ###?##=! | | ????????????#??#? """?"?" #?#?#### # ###### | | ???????????###??? """ """?####?###### # ## | | ???????????#????#?? ? ? ?###### # ### | | ?????????????#??? ##### ###### | | ??????????????######?####?###### *## ?# | | ????????????????##??#?########### %=# ## | | ?????????????##??#???##?########## #### | | ??????????#####?##??##?############# % # | | ?????????#?#???############### ##### | | ???????#??#???##?########?### #### | | ??????#??##??##?#### ###?# %] | | ?????#?#?????#?##?# #### % | | ????###?##?###?#?## #### ####### | | ????#??##?#??###### ##### ######## | +----------------------------------------------------+ Best States ------------- Heat Dissipation 45 Energy Generation 14 Energy Capacity 650 Matter Stores 300 Matter Capacity 300 Sight Range 16 Terrain Scan Range 16 Terrain Scan Density 210 Evasion (%) 40 Item Schematics ----------------- None Robot Schematics ------------------ None Fabricated ------------ Nothing Alien Tech Used ----------------- None Achievements -------------- None Challenges ------------ None RPGLIKE | -11 -10 -10 --------- Run | Scr Mat Min Levels Raised 2 | . 1 1 XP Earned 7400 | 3000 2850 1550 XP Spent 5790 | 1500 2290 2000 Upgrades 12 | 3 5 4 Propulsion Slot 1 | 1 . . Utility Slot 3 | 1 2 . Weapon Slot 1 | 1 . . Inventory Capacity 2 | . 1 1 Terrain Scan Density 2 | . 2 . Ranged Accuracy 3 | . . 3 Protomatter Created 215 | . 142 73 Integrity Restored 665 | . 371 294 Core 633 | . 353 280 Parts 32 | . 18 14 Protomatter Decayed 28 | . 16 12 Game ------ Seed FlyingElectronMallet Manual? 0 Play Time 00:21:22 Cumulative 184.7 hours Start 2020.04.15 @ 02:07:06 End 2020.04.15 @ 02:26:24 Sessions 1 Manual Loads 0 Difficulty Rogue Special Mode Winter2019/RPGLIKE Game No. 67 Rogue 67 Adventurer 0 Explorer 0 Win Type - Total 1 Types 1/0/0/0/0/0/0 Lore% 66 Gallery% 73 Achievement% 64 Wizard Run 0 Options --------- ASCII 1 Keyboard 1 Movement Numpad Keybinds 0 Fullscreen 1 Font 16/SmallcapsGlow Map View 75x55 Tactical HUD 1 Map Filters NONE Filters NONE Steam 1 RUN: 16c07e5b-e7fc-43ab-829c-3417b3fb0a4f